[Event "Mukachevo Rating March 2019"]
[Site "Mukachevo"]
[Date "2019.03.16"]
[Round "8.3"]
[White "Tiba, Vladyslav"]
[Black "Shankovskyi, Andrii"]
[Result "0-1"]
[ECO "B07"]
[WhiteElo "2389"]
[BlackElo "2347"]
[Annotator "NA"]
[PlyCount "128"]
[EventDate "2019.??.??"]
[EventCountry "UKR"]
[SourceTitle "playchess.com"]
[Source "ChessBase"]
[SourceQuality "1"]
[TimeControl "40/5400+30:900+30"]

1. e4 {[%emt 0:01:43]} d6 {[%emt 0:37:00]} 2. d4 {[%emt 0:00:12]} Nf6 {[%emt 0:00:03]} 3. Nc3 {[%emt 0:00:07]} g6 {[%emt 0:00:02]} 4. Be3 {[%emt 0:00:23]} Bg7 {[%emt 0:00:02]} 5. f3 {[%emt 0:00:08]} O-O {[%emt 0:00:05]} 6. Qd2 {[%emt 0:00:05]} Nbd7 {[%emt 0:00:30]} 7. O-O-O {[%emt 0:00:20]} c6 {[%emt 0:01:15]} 8. h4 {[%emt 0:01:25]} b5 {[%emt 0:04:20] B07: Pirc Defence: Miscellaneous Systems} 9. Kb1 {[%emt 0:02:37]} Nb6 {[%emt 0:00:12]} 10. Bd3 {[%emt 0:02:12]} e5 $146 {[%emt 0:01:03]} ({Predecessor:} 10... h5 11. Bh6 e5 12. dxe5 dxe5 13. Bxg7 Kxg7 14. Nce2 Qe7 15. Ng3 Nfd7 16. N1e2 {1-0 (55) Bellaiche,A (2472)-Chatalbashev,B (2602) Aix les Bains 2011}) 11. dxe5 {[%emt 0:08:57]} dxe5 {[%emt 0:00:09]} 12. Nh3 {[%emt 0:00:34]} (12. h5 $5) 12... Qe7 {[%emt 0:01:17]} 13. Qf2 {[%emt 0:01:05]} Rd8 {[%emt 0:00:32]} 14. g4 {[%emt 0:03:54]} Be6 {[%emt 0:01:53]} (14... h5 $1 $11) 15. Ng5 {[%emt 0:05:43]} Nbd7 {[%emt 0:06:56]} 16. Ne2 {[%emt 0:03:47]} ({White should try} 16. h5) 16... a6 {[%emt 0:00:25]} 17. Ng3 {[%emt 0:00:58]} Nf8 {[%emt 0:03:51]} 18. Nxe6 {[%emt 0:05:52]} Nxe6 {[%emt 0:00:26]} 19. g5 {[%emt 0:00:40]} Nd7 {[%emt 0:01:48]} 20. Nf5 {[%emt 0:02:18]} gxf5 {[%emt 0:02:51]} 21. exf5 {[%emt 0:00:05]} Nf4 {[%emt 0:00:24]} 22. f6 {[%emt 0:05:31]} Nxf6 {[%emt 0:01:08]} 23. gxf6 {[%emt 0:00:06]} Qxf6 {[%emt 0:00:08]} 24. Be4 {[%emt 0:00:14]} h6 {[%emt 0:06:56]} 25. Bb6 {[%emt 0:04:36]} Rxd1+ {[%emt 0:00:52]} 26. Rxd1 {[%emt 0:00:05]} Qe6 {[%emt 0:01:30]} 27. Qc5 {[%emt 0:06:49]} Rc8 {[%emt 0:00:45]} 28. Qd6 {[%emt 0:00:31]} Bf8 {[%emt 0:04:26]} 29. Qxe6 {[%emt 0:04:06]} Nxe6 {[%emt 0:00:15]} 30. Bf5 {[%emt 0:00:41]} Re8 {[%emt 0:03:56]} 31. Bxe6 {[%emt 0:00:24]} Rxe6 {[%emt 0:00:12]} 32. Rd8 {[%emt 0:00:18]} Kg7 {[%emt 0:00:19]} 33. h5 {[%emt 0:00:36]} Rd6 {[%emt 0:00:58]} 34. Kc1 {[%emt 0:01:25]} Rxd8 {[%emt 0:01:05]} 35. Bxd8 {[%emt 0:00:03]} f5 {[%emt 0:00:08]} 36. Kd2 {[%emt 0:00:28]} Kf7 {[%emt 0:00:08]} 37. Kd3 {[%emt 0:00:24]} Be7 {[%emt 0:00:19]} 38. Bc7 {[%emt 0:00:07]} Ke6 {[%emt 0:00:09]} 39. b3 {[%emt 0:00:25]} b4 {[%emt 0:01:41]} 40. Bb6 {[%emt 0:00:00]} Kf6 {[%emt 0:00:00]} 41. Bc7 {[%emt 0:01:48]} Ke6 {[%emt 0:03:33]} 42. Bb6 {[%emt 0:00:09]} c5 {[%emt 0:00:23]} 43. c4 $19 {[%emt 0:02:08]} (43. Ba5 $17 {might work better.}) 43... bxc3 {[%emt 0:00:23]} 44. Kxc3 {[%emt 0:00:06]} e4 {[%emt 0:02:02]} 45. fxe4 {[%emt 0:00:20]} fxe4 {[%emt 0:00:07]} 46. Kd2 {[%emt 0:00:22]} Kd5 {[%emt 0:00:51]} 47. Ke2 {[%emt 0:01:13]} Bf6 {[%emt 0:00:24]} 48. Ba5 {[%emt 0:00:28]} Ke5 {[%emt 0:00:32]} 49. Bb6 {[%emt 0:01:40]} Be7 {[%emt 0:01:05]} 50. Kd2 {[%emt 0:00:48]} Kf4 {[%emt 0:00:14]} 51. Ke2 {[%emt 0:00:06]} Kf5 {[%emt 0:00:56]} 52. Kf2 {[%emt 0:00:17]} Ke6 {[%emt 0:00:22]} 53. Ke2 {[%emt 0:00:16]} Kd5 {[%emt 0:00:05]} 54. Ba5 {[%emt 0:00:08]} Bg5 {[%emt 0:00:21]} 55. Bb6 {[%emt 0:01:05]} Bf4 {[%emt 0:00:06]} 56. Ba5 {[%emt 0:00:11]} Ke6 {[%emt 0:00:29]} 57. Bb6 {[%emt 0:00:16]} Bd6 {[%emt 0:00:05]} 58. Kf2 {[%emt 0:00:51]} Kd5 {[%emt 0:01:04]} 59. Ke2 {[%emt 0:00:08]} Bf4 {[%emt 0:00:56]} 60. Ba5 {[%emt 0:00:12]} c4 {[%emt 0:00:12]} 61. bxc4+ {[%emt 0:00:05]} Kxc4 {[%emt 0:00:02]} 62. Bb6 {[%emt 0:00:08]} Kd5 {[%emt 0:00:35]} 63. Bd8 {[%emt 0:00:21]} Ke5 {[%emt 0:00:44]} 64. Be7 {[%emt 0:01:17]} Kf5 {[%emt 0:00:05]} 0-1

[Event "Mukachevo Rating March 2019"]
[Site "Mukachevo"]
[Date "2019.03.16"]
[Round "8.4"]
[White "Shkuran, Danylo"]
[Black "Vachylia, Andrii"]
[Result "1/2-1/2"]
[ECO "D60"]
[WhiteElo "2356"]
[BlackElo "2268"]
[Annotator "ChessBase"]
[PlyCount "62"]
[EventDate "2019.??.??"]
[EventCountry "UKR"]
[SourceTitle "playchess.com"]
[Source "ChessBase"]
[SourceQuality "1"]
[TimeControl "40/5400+30:900+30"]

1. d4 {[%emt 0:00:12]} d5 {[%emt 0:00:00]} 2. c4 {[%emt 0:00:05]} e6 {[%emt 0:00:00]} 3. Nc3 {[%emt 0:00:04]} Nf6 {[%emt 0:00:00]} 4. Bg5 {[%emt 0:00:06]} Be7 {[%emt 0:00:04]} 5. e3 {[%emt 0:00:04]} O-O {[%emt 0:00:09]} 6. Nf3 {[%emt 0:00:04]} Nbd7 {[%emt 0:00:06]} 7. Bd3 {[%emt 0:00:10]} b6 {[%emt 0:00:06]} 8. O-O {[%emt 0:00:08]} Bb7 {[%emt 0:00:03]} 9. Qe2 {[%emt 0:00:17]} h6 {[%emt 0:00:09]} 10. Bh4 {[%emt 0:00:20]} c5 {[%emt 0:01:35]} 11. Rad1 {[%emt 0:02:18]} Ne4 {[%emt 0:01:36]} 12. Bxe7 {[%emt 0:00:19]} Qxe7 {[%emt 0:00:04]} 13. cxd5 {[%emt 0:03:10]} exd5 {[%emt 0:01:04]} 14. Ba6 {[%emt 0:00:21]} Nxc3 {[%emt 0:00:21]} 15. bxc3 {[%emt 0:00:05]} Bxa6 {[%emt 0:00:34]} 16. Qxa6 {[%emt 0:00:03]} Nf6 {[%emt 0:00:16]} 17. c4 {[%emt 0:00:24]} dxc4 {[%emt 0:00:20]} 18. Qxc4 {[%emt 0:00:08]} cxd4 {[%emt 0:00:07]} 19. Nxd4 {[%emt 0:00:38]} Qe4 {[%emt 0:00:07]} 20. Rc1 {[%emt 0:00:53]} a6 {[%emt 0:00:26]} 21. Nb3 {[%emt 0:00:26]} b5 {[%emt 0:00:22]} 22. Qxe4 {[%emt 0:00:12]} Nxe4 {[%emt 0:00:04]} 23. Nc5 {[%emt 0:00:06]} Nxc5 {[%emt 0:00:07]} 24. Rxc5 {[%emt 0:00:04]} Rfc8 {[%emt 0:00:07]} 25. Rfc1 {[%emt 0:01:46]} Rxc5 {[%emt 0:00:06]} 26. Rxc5 {[%emt 0:00:05]} Rd8 {[%emt 0:00:09]} 27. g4 {[%emt 0:00:28]} Rd2 {[%emt 0:00:06]} 28. a4 {[%emt 0:00:27]} bxa4 {[%emt 0:00:36]} 29. Ra5 {[%emt 0:00:05]} Ra2 {[%emt 0:00:05]} 30. Rxa6 {[%emt 0:00:04]} g6 {[%emt 0:00:05]} 31. h4 {[%emt 0:00:09]} Kg7 {[%emt 0:00:05]} 1/2-1/2

[Event "Mukachevo Rating March 2019"]
[Site "Mukachevo"]
[Date "2019.03.16"]
[Round "8.5"]
[White "Terletsky, Oleg"]
[Black "Demeter, Dorina"]
[Result "1-0"]
[ECO "B50"]
[WhiteElo "2264"]
[BlackElo "2140"]
[Annotator "NA"]
[PlyCount "57"]
[EventDate "2019.??.??"]
[EventCountry "UKR"]
[SourceTitle "playchess.com"]
[Source "ChessBase"]
[SourceQuality "1"]
[TimeControl "40/5400+30:900+30"]

1. e4 {[%emt 0:00:00]} c5 {[%emt 0:00:00]} 2. Nf3 {[%emt 0:00:00]} d6 {[%emt 0:00:00]} 3. Nc3 {[%emt 0:00:00]} Nc6 {[%emt 0:00:38]} 4. g3 {[%emt 0:00:16]} g6 {[%emt 0:00:40]} 5. Bg2 {[%emt 0:00:07]} Bg7 {[%emt 0:00:11]} 6. O-O {[%emt 0:00:07]} e5 {[%emt 0:00:53]} 7. d3 {[%emt 0:01:07]} Nge7 {[%emt 0:00:32]} 8. Nh4 {[%emt 0:04:26]} Be6 {[%emt 0:16:40]} 9. Nd5 {[%emt 0:07:21]} h6 {[%emt 0:12:47]} 10. f4 {[%emt 0:06:49]} Qd7 {[%emt 0:06:51]} 11. c4 {[%emt 0:01:50]} O-O-O {[%emt 0:07:16]} 12. Rb1 $15 {[%emt 0:04:32]} ({Better is} 12. f5 $11 gxf5 13. exf5 Nxf5 14. Nxf5 Bxf5 15. Be3) 12... Bg4 {[%emt 0:08:51]} 13. Bf3 {[%emt 0:09:49]} Bh3 {[%emt 0:07:14]} 14. Rf2 {[%emt 0:02:26]} exf4 {[%emt 0:03:06]} 15. Nxf4 {[%emt 0:01:19]} h5 {[%emt 0:03:48]} 16. Nxh3 {[%emt 0:00:56]} Qxh3 {[%emt 0:00:13]} 17. Bg2 {[%emt 0:00:25]} Qe6 {[%emt 0:00:46]} 18. Nf3 {[%emt 0:01:00]} Bd4 {[%emt 0:03:55]} 19. Nxd4 {[%emt 0:00:31]} Nxd4 {[%emt 0:00:12]} 20. Bg5 {[%emt 0:00:18]} Rhf8 {[%emt 0:07:26]} 21. Bf6 {[%emt 0:00:24]} Rde8 {[%emt 0:05:33]} 22. b4 {[%emt 0:03:08]} Nec6 {[%emt 0:01:13]} 23. bxc5 {[%emt 0:00:37]} dxc5 {[%emt 0:00:25]} 24. Qf1 {[%emt 0:02:24]} Kb8 {[%emt 0:05:53]} 25. e5 {[%emt 0:06:49]} b6 {[%emt 0:04:33]} 26. Bh3 {[%emt 0:00:32]} Nf5 {[%emt 0:00:24]} 27. Rxf5 {[%emt 0:00:21]} gxf5 {[%emt 0:01:08]} 28. Bxf5 {[%emt 0:00:07]} Kc8 29. Bg4 1-0

[Event "Mukachevo Rating March 2019"]
[Site "Mukachevo"]
[Date "2019.03.17"]
[Round "9.1"]
[White "Demeter, Dorina"]
[Black "Vanczak, Tamas"]
[Result "0-1"]
[ECO "D15"]
[WhiteElo "2140"]
[BlackElo "2263"]
[Annotator "NA"]
[PlyCount "69"]
[EventDate "2019.??.??"]
[EventCountry "UKR"]
[SourceTitle "playchess.com"]
[Source "ChessBase"]
[SourceQuality "1"]
[TimeControl "40/5400+30:900+30"]

{[%evp 10,55,33,4,10,13,20,17,22,32767,32767,32767,32767,17,18,7,11,10,0,20,41,44,38,66,68,83,91,52,50,42,89,64,117,64,32767,52,48,50,32767,-236,-249,-272,-252,32767,32767,-572,32767,-570]} 1. Nf3 {[%emt 0:00:00]} d5 {[%emt 0:00:00]} 2. d4 {[%emt 0:00:00]} Nf6 {[%emt 0:00:16]} 3. c4 {[%emt 0:00:51]} c6 {[%emt 0:00:20]} 4. Nc3 {[%emt 0:00:37]} a6 {[%emt 0:00:17]} 5. e3 {[%emt 0:00:57]} Bf5 {[%emt 0:01:07]} 6. Bd2 {[%emt 0:02:42] D15: Slav Defence: 4 Nc3 a6 and gambit lines after 4 Nc3 dxc4} (6. Qb3 Ra7 7. Nh4 Bc8 8. Bd2 e6 9. c5 Nbd7 10. Nf3 e5 11. Nxe5 Nxe5 12. dxe5 Nd7 13. Na4 Bxc5 14. Nxc5 Nxc5 {0-1 (84) Radjabov,T (2757)-Fedoseev,V (2724) Wijk aan Zee 2019}) 6... e6 {[%emt 0:01:09]} 7. Qb3 {[%emt 0:00:55]} Ra7 {[%emt 0:00:35]} 8. Nh4 {[%emt 0:01:00]} Be4 {[%emt 0:00:38]} 9. cxd5 {[%emt 0:00:36]} cxd5 {[%emt 0:00:18]} 10. f3 {[%emt 0:00:47]} Bg6 {[%emt 0:00:11]} 11. Nxg6 {[%emt 0:01:03]} hxg6 {[%emt 0:00:07]} 12. O-O-O {[%emt 0:01:28]} Nc6 {[%emt 0:01:18]} 13. Kb1 {[%emt 0:01:07]} Be7 {[%emt 0:00:58]} 14. Rc1 {[%emt 0:01:29] [#]} O-O $146 {[%emt 0:03:33]} 15. h4 {[%emt 0:04:16]} Na5 {[%emt 0:00:37]} 16. Qd1 {[%emt 0:02:31]} Nc4 {[%emt 0:01:38]} 17. Bxc4 {[%emt 0:03:01]} dxc4 {[%emt 0:00:07]} 18. Ne2 {[%emt 0:07:56]} b5 {[%emt 0:03:59]} 19. e4 {[%emt 0:09:09]} Rd7 {[%emt 0:03:39] [#]} 20. h5 $1 {[%emt 0:14:17]} e5 {[%emt 0:13:55]} 21. d5 {[%emt 0:19:01]} (21. hxg6 $16 fxg6 22. Qe1) 21... Nxd5 {[%emt 0:02:59]} 22. exd5 {[%emt 0:02:06]} Rxd5 {[%emt 0:00:07]} 23. Rc2 {[%emt 0:01:10]} b4 {[%emt 0:00:12]} 24. Kc1 $2 {[%emt 0:09:14]} (24. hxg6 $16 {is forced if you want to stay better.} Bg5 25. Qc1 Rxd2 26. Rxd2 Qxd2 27. Qxc4) 24... Bg5 {[%emt 0:05:41]} 25. f4 {[%emt 0:03:21] [#]} exf4 $1 {[%emt 0:02:23]} 26. Rxc4 {[%emt 0:03:32] [#]} f3 $1 {[%emt 0:05:25]} 27. Nf4 {[%emt 0:03:25]} fxg2 {[%emt 0:01:25]} 28. Rg1 {[%emt 0:03:12]} Bxf4 {[%emt 0:11:26]} 29. Rxf4 {[%emt 0:00:23]} Qb6 {[%emt 0:00:20]} 30. Rxg2 {[%emt 0:02:27]} Qc7+ {[%emt 0:00:16]} 31. Qc2 {[%emt 0:01:19]} Rc5 {[%emt 0:00:09]} 32. Be3 {[%emt 0:00:55]} Rxc2+ {[%emt 0:00:10]} 33. Rxc2 {[%emt 0:00:02]} Qe5 {[%emt 0:00:26]} 34. Bd2 {[%emt 0:00:29]} Qxh5 {[%emt 0:00:35]} 35. Be1 0-1

[Event "Mukachevo Rating March 2019"]
[Site "Mukachevo"]
[Date "2019.03.17"]
[Round "9.2"]
[White "Vachylia, Andrii"]
[Black "Terletsky, Oleg"]
[Result "0-1"]
[ECO "E73"]
[WhiteElo "2268"]
[BlackElo "2264"]
[Annotator "NA"]
[PlyCount "124"]
[EventDate "2019.??.??"]
[EventCountry "UKR"]
[SourceTitle "playchess.com"]
[Source "ChessBase"]
[SourceQuality "1"]
[TimeControl "40/5400+30:900+30"]

1. d4 {[%emt 0:00:00]} Nf6 {[%emt 0:00:00]} 2. c4 {[%emt 0:00:00]} g6 {[%emt 0:00:00]} 3. Nc3 {[%emt 0:00:00]} Bg7 {[%emt 0:00:00]} 4. e4 {[%emt 0:00:00]} d6 {[%emt 0:00:00]} 5. Be2 {[%emt 0:00:09]} O-O {[%emt 0:00:00]} 6. Bg5 {[%emt 0:00:10]} Na6 {[%emt 0:00:02]} 7. Qd2 {[%emt 0:00:12]} e5 {[%emt 0:00:11]} 8. d5 {[%emt 0:01:08]} Nc5 {[%emt 0:00:07]} 9. f3 {[%emt 0:00:29]} a5 {[%emt 0:00:12]} 10. h4 {[%emt 0:01:07]} c6 {[%emt 0:00:58]} 11. h5 {[%emt 0:00:52] E73: King's Indian: Averbakh Variation without 6...c5} cxd5 {[%emt 0:00:26]} 12. cxd5 {[%emt 0:01:00]} a4 {[%emt 0:00:44]} 13. Nh3 {[%emt 0:03:56]} Qa5 {[%emt 0:05:28]} (13... h6 $14 14. Bxh6 Nxh5) 14. Nf2 {[%emt 0:12:37]} (14. h6 $16 Bh8 15. Nb5) 14... Bd7 {[%emt 0:00:31]} (14... Nxh5 $15 15. Be7 Ng3) 15. g4 {[%emt 0:06:20]} Rfc8 {[%emt 0:02:50]} 16. hxg6 {[%emt 0:06:36] [#]} hxg6 $146 {[%emt 0:01:48]} ({Predecessor:} 16... fxg6 17. Bxf6 Bxf6 18. Qh6 Be8 19. Qxh7+ {0-1 (42) Alburt,L (2535)-Spraggett,K (2560) Taxco 1985}) 17. Bh6 {[%emt 0:01:21]} Bh8 $1 {[%emt 0:01:29]} 18. Nfd1 {[%emt 0:05:29]} b5 {[%emt 0:02:05]} 19. Bg5 {[%emt 0:25:00]} Bg7 {[%emt 0:00:28]} 20. Bh6 {[%emt 0:05:18]} Bh8 {[%emt 0:00:05]} 21. Bg5 {[%emt 0:10:28]} Bg7 {[%emt 0:00:39]} 22. Bh6 {[%emt 0:00:03]} Bh8 $1 {[%emt 0:00:05]} 23. Bf1 {[%emt 0:00:00]} b4 {[%emt 0:01:15]} 24. Ne2 {[%emt 0:00:00]} Bxg4 {[%emt 0:03:48]} 25. fxg4 {[%emt 0:00:36]} Ncxe4 {[%emt 0:00:44]} 26. Qd3 {[%emt 0:00:19]} b3+ {[%emt 0:01:43]} 27. Nec3 {[%emt 0:00:32]} Nxc3 {[%emt 0:01:52]} 28. Nxc3 {[%emt 0:00:47]} a3 {[%emt 0:06:11]} 29. axb3 {[%emt 0:05:47]} Qb4 {[%emt 0:00:07]} 30. Bd2 {[%emt 0:00:58]} axb2 {[%emt 0:00:26]} 31. Rxa8 {[%emt 0:01:04]} Rxa8 {[%emt 0:00:01]} 32. Nb1 {[%emt 0:06:08]} (32. g5 $1 $11 e4 33. Rxh8+ (33. Qh3 $2 Ra1+ 34. Ke2 Nh5 $19) 33... Kxh8 34. Qh3+ Nh5 35. Nb1) 32... Qxg4 {[%emt 0:04:46]} 33. Bc3 {[%emt 0:00:09]} Bg7 {[%emt 0:08:15]} 34. Be2 {[%emt 0:01:53]} Qg2 {[%emt 0:00:55]} 35. Rf1 $2 {[%emt 0:00:44]} (35. Qf3 $17 Qxf3 36. Bxf3) 35... Qxd5 {[%emt 0:02:21]} 36. Bxb2 {[%emt 0:00:14]} Qxd3 {[%emt 0:08:41]} 37. Bxd3 {[%emt 0:00:04]} d5 {[%emt 0:00:05]} 38. Bb5 {[%emt 0:01:46]} Rb8 {[%emt 0:02:00]} 39. Ba4 {[%emt 0:00:00]} Ne4 {[%emt 0:00:00]} 40. Ba3 {[%emt 0:00:00]} Bh6 {[%emt 0:00:00]} 41. Rf3 {[%emt 0:05:22]} d4 {[%emt 0:08:48]} 42. Bc6 {[%emt 0:02:47]} Ng5 {[%emt 0:00:08]} 43. Rg3 {[%emt 0:00:02]} e4 {[%emt 0:02:59]} 44. b4 $11 {[%emt 0:01:21]} Kh7 {[%emt 0:13:16]} 45. b5 {[%emt 0:00:15]} Nf3+ {[%emt 0:04:24]} 46. Kd1 {[%emt 0:00:03]} Ne5 {[%emt 0:00:37]} 47. Bd6 {[%emt 0:00:34]} Nxc6 {[%emt 0:00:13]} 48. Bxb8 {[%emt 0:00:07]} Nxb8 {[%emt 0:00:06]} 49. Nd2 {[%emt 0:00:32]} f5 {[%emt 0:00:18]} 50. Ra3 {[%emt 0:00:03]} Bf4 {[%emt 0:00:41]} 51. Nb3 {[%emt 0:01:02]} d3 {[%emt 0:00:26]} 52. Nc5 {[%emt 0:00:08]} Kh6 {[%emt 0:01:31]} 53. Ne6 {[%emt 0:05:26]} Bg3 {[%emt 0:02:32]} 54. b6 {[%emt 0:00:27]} Kh5 {[%emt 0:00:43]} 55. Ra7 {[%emt 0:00:49]} e3 {[%emt 0:00:52]} 56. Nd4 {[%emt 0:00:29]} Nc6 {[%emt 0:00:34]} 57. Ne2 {[%emt 0:01:24]} Be5 {[%emt 0:07:13]} 58. Ra4 {[%emt 0:00:40]} g5 {[%emt 0:00:38]} 59. Rc4 {[%emt 0:00:34]} f4 {[%emt 0:01:56]} 60. Nc1 {[%emt 0:00:23]} d2 {[%emt 0:07:54]} 61. Nd3 {[%emt 0:00:23]} f3 {[%emt 0:00:51]} 62. Rxc6 {[%emt 0:00:41]} f2 {[%emt 0:00:08]} 0-1